{"text_format":"1","workbook":"xlsx","n_sheets":3,"sheets":["Karakterbok","Sammendrag for eleven","Karaktersettingsvilkår"],"not_rendered":{"charts":1,"images":1,"macros":1,"external_links":0,"defined_names":11,"comments":0,"pivot_tables":0},"unopened":[],"bounds":{"document_bytes":16777216,"sheet_cells":100000,"rows_first":2000,"rows_last":500,"rows_between":2000,"halvings":0,"cell_chars":16384,"cell_head_chars":4096},"cells_cut":0,"cells_raw":0,"read":"whole","date_system":"1900"}

{"sheet":"Karakterbok","index":0,"n_rows":8,"n_cols":9,"rows_kept":8,"cut":false,"hidden":false,"merged":[]}
[null,"Klassenavn"]
[null,"Lærerens navn",null,null,null,"Oppgavedato ","2011-01-18","2011-01-25","2011-02-01"]
[null,null,null,null,"Totalt mulige poeng ",{"$f":"SUM(Totaltantallpoengforoppgave[#Data])","v":90},20,20,50]
[null,"Elevens navn","Fremføring","Karakter","%","Totalt opptjente poeng","Skriveoppgave i klasse 1","Skriveoppgave i klasse 2","Utkast for stil"]
[null,"Elev 1",{"$f":"Studentdata[[#This Row],[Totalt opptjente poeng]]","v":90},{"$f":"IFERROR(VLOOKUP(Studentdata[[#This Row],[%]],Karaktertabell[],2,TRUE),\"\")","v":"A+"},{"$f":"IFERROR(Studentdata[[#This Row],[Totalt opptjente poeng]]/Poengtotalt,\"\")","v":1},{"$f":"IFERROR(SUM(Studentdata[[#This Row],[Skriveoppgave i klasse 1]]:OFFSET(F5,,COUNTA(Totaltantallpoengforoppgave[]))),\"\")","v":90},20,20,50]
[null,"Elev 2",{"$f":"Studentdata[[#This Row],[Totalt opptjente poeng]]","v":60},{"$f":"IFERROR(VLOOKUP(Studentdata[[#This Row],[%]],Karaktertabell[],2,TRUE),\"\")","v":"D"},{"$f":"IFERROR(Studentdata[[#This Row],[Totalt opptjente poeng]]/Poengtotalt,\"\")","v":0.66666666666666663},{"$f":"IFERROR(SUM(Studentdata[[#This Row],[Skriveoppgave i klasse 1]]:OFFSET(F6,,COUNTA(Totaltantallpoengforoppgave[]))),\"\")","v":60},10,10,40]
[null,"Elev 3",{"$f":"Studentdata[[#This Row],[Totalt opptjente poeng]]","v":75},{"$f":"IFERROR(VLOOKUP(Studentdata[[#This Row],[%]],Karaktertabell[],2,TRUE),\"\")","v":"B"},{"$f":"IFERROR(Studentdata[[#This Row],[Totalt opptjente poeng]]/Poengtotalt,\"\")","v":0.83333333333333337},{"$f":"IFERROR(SUM(Studentdata[[#This Row],[Skriveoppgave i klasse 1]]:OFFSET(F7,,COUNTA(Totaltantallpoengforoppgave[]))),\"\")","v":75},20,15,40]
[null,"Gjennomsnittskarakter/-poeng",null,{"$f":"IFERROR(VLOOKUP(Studentdata[[#Totals],[%]],Karaktertabell[],2,TRUE),\"\")","v":"B"},{"$f":"SUBTOTAL(101,Studentdata[%])","v":0.83333333333333337},{"$f":"SUBTOTAL(101,Studentdata[Totalt opptjente poeng])","v":75},{"$f":"SUBTOTAL(101,Studentdata[Skriveoppgave i klasse 1])","v":16.666666666666668},{"$f":"SUBTOTAL(101,Studentdata[Skriveoppgave i klasse 2])","v":15},{"$f":"SUBTOTAL(101,Studentdata[Utkast for stil])","v":43.333333333333336}]

{"sheet":"Sammendrag for eleven","index":1,"n_rows":51,"n_cols":8,"rows_kept":51,"cut":false,"hidden":false,"merged":[[7,1,7,3],[11,1,11,2],[35,1,44,7],[0,0,0,4]]}
["Skolens navn"]
[null,"Lærerens navn"]
[null,"Klassenavn"]
[null,"Fremdrift til dato"]
[null,"2011-09-22"]
[]
[null,"Elevens navn:"]
[null,"Elev 3"]
[]
[]
[null,"Elevens rangering",null,"Bokstavkarakter","Prosent","Elevens poeng","Poeng totalt","GPA"]
[null,{"$f":"IFERROR(_xlfn.RANK.EQ(VLOOKUP(B8,Studentdata[],5,FALSE),Studentdata[Totalt opptjente poeng]) & \" av \"&COUNTA(Studentdata[Elevens navn]) & \" Studenter\",\"\")","v":"2 av 3 Studenter"},null,{"$f":"IFERROR(VLOOKUP(Elevensnavn,Studentdata[],3,FALSE),\"\")","v":"B"},{"$f":"IFERROR(VLOOKUP(Elevensnavn,Studentdata[],4,FALSE),\"\")","v":0.83333333333333337},{"$f":"IFERROR(VLOOKUP(Elevensnavn,Studentdata[],5,FALSE),\"\")","v":75},{"$f":"Poengtotalt","v":90},{"$f":"IFERROR(VLOOKUP(E12,Karaktertabell[],3,TRUE),\"\")","v":3}]
[]
[]
[]
[]
[]
[]
[]
[]
[]
[]
[]
[]
[]
[]
[]
[]
[]
[]
[]
[]
[]
[]
[null,"Lærerens kommentarer"]
[]
[]
[]
[]
[]
[]
[]
[]
[]
[]
[]
[]
[null,"Forelders signatur (hvis nødvendig)"]
[]
[]
[null,"X",null,null,null,"Dato:"]

{"sheet":"Karaktersettingsvilkår","index":2,"n_rows":20,"n_cols":4,"rows_kept":20,"cut":false,"hidden":false,"merged":[[4,1,4,3],[2,1,2,4]]}
[null,"Beregn bokstavkarakter"]
[]
[null,"Skriv inn prosentområdene for hver bokstavkarakter i tabellen nedenfor, for å tilpasse malen til karaktersettingsvilkårene. "]
[]
[null,"Tabell for KARAKTER og GPA\n(Brukes til å beregne elevkarakterer i Karakterbok-regnearket)"]
[null,"Poengsum","Oppnådd bokstavkarakter","GPA"]
[null,0,"F",0]
[null,0.6,"D-",0.67]
[null,0.63,"D",1]
[null,0.67,"D+",1.33]
[null,0.7,"C-",1.67]
[null,0.73,"C",2]
[null,0.77,"C+",2.33]
[null,0.8,"B-",2.67]
[null,0.83,"B",3]
[null,0.87,"B+",3.33]
[null,0.9,"A-",3.67]
[null,0.93,"A",4]
[null,0.97,"A+",4]
[null,"Poeng og GPA må skrives inn i stigende rekkefølge."]